[Event "*** Titled Tuesday Blitz"]
[Site "Chess.com"]
[Date "2019.10.01"]
[Round "4"]
[White "DrRiebert"]
[Black "babero_gordo"]
[Result "1-0"]
[WhiteElo "2427"]
[BlackElo "2111"]
[TimeControl "180+2"]
[EndTime "13:53:09 PDT"]
[Termination "DrRiebert won by resignation"]

1. e4 {[%clk 0:03:01.9]} 1... c5 {[%clk 0:03:00.9]} 2. Nf3 {[%clk 0:03:01.3]}
2... Nc6 {[%clk 0:03:02.1]} 3. d4 {[%clk 0:03:01.9]} 3... cxd4 {[%clk 0:03:04]}
4. Nxd4 {[%clk 0:03:03.6]} 4... g6 {[%clk 0:03:05.3]} 5. Nc3 {[%clk 0:03:04.5]}
5... Bg7 {[%clk 0:03:05.8]} 6. Be3 {[%clk 0:03:05.9]} 6... Nf6 {[%clk
0:03:06.8]} 7. Qd2 {[%clk 0:02:58.9]} 7... Ng4 {[%clk 0:02:40.7]} 8. Nxc6 {[%clk
0:02:57.3]} 8... bxc6 {[%clk 0:02:38.3]} 9. Bd4 {[%clk 0:02:57.1]} 9... O-O
{[%clk 0:02:28.5]} 10. h3 {[%clk 0:02:46.9]} 10... Nf6 {[%clk 0:02:19.3]} 11. e5
{[%clk 0:02:43.8]} 11... Nd5 {[%clk 0:02:16.9]} 12. Nxd5 {[%clk 0:02:43]} 12...
cxd5 {[%clk 0:02:18.8]} 13. Be2 {[%clk 0:02:29.1]} 13... d6 {[%clk 0:02:12]} 14.
exd6 {[%clk 0:02:29]} 14... Qxd6 {[%clk 0:02:13.9]} 15. Bxg7 {[%clk 0:02:28.2]}
15... Kxg7 {[%clk 0:02:15.8]} 16. O-O {[%clk 0:02:28.3]} 16... Be6 {[%clk
0:02:08.5]} 17. Qd4+ {[%clk 0:02:26]} 17... Kg8 {[%clk 0:02:06.1]} 18. Bf3
{[%clk 0:02:24.8]} 18... Rac8 {[%clk 0:01:58.6]} 19. c3 {[%clk 0:02:22.5]} 19...
Rc4 {[%clk 0:01:52.7]} 20. Qxa7 {[%clk 0:02:21.4]} 20... Qf4 {[%clk 0:01:35.3]}
21. Qe3 {[%clk 0:02:17]} 21... Qh4 {[%clk 0:01:26.7]} 22. Rad1 {[%clk
0:02:09.7]} 22... Rd8 {[%clk 0:01:01.1]} 23. Rd4 {[%clk 0:01:48.5]} 23... Qf6
{[%clk 0:00:54.1]} 24. Rfd1 {[%clk 0:01:46.5]} 24... Ra8 {[%clk 0:00:26.7]} 25.
Rxc4 {[%clk 0:01:45.9]} 25... dxc4 {[%clk 0:00:28.6]} 26. Bxa8 {[%clk
0:01:46.5]} 1-0

[Event "*** Titled Tuesday Blitz"]
[Site "Chess.com"]
[Date "2019.10.01"]
[Round "4"]
[White "benhal"]
[Black "JoNAs_88"]
[Result "1-0"]
[WhiteElo "2320"]
[BlackElo "2480"]
[TimeControl "180+2"]
[EndTime "13:53:34 PDT"]
[Termination "benhal won by resignation"]

1. e4 {[%clk 0:01:38.4]} 1... c6 {[%clk 0:02:58.8]} 2. d3 {[%clk 0:01:38.2]}
2... d5 {[%clk 0:02:58.8]} 3. Nf3 {[%clk 0:01:39.2]} 3... Nf6 {[%clk 0:02:59.9]}
4. e5 {[%clk 0:01:39.9]} 4... Nfd7 {[%clk 0:02:59.3]} 5. Qe2 {[%clk 0:01:41.8]}
5... e6 {[%clk 0:02:58]} 6. h4 {[%clk 0:01:42.3]} 6... c5 {[%clk 0:02:58.6]} 7.
g3 {[%clk 0:01:43.2]} 7... Nc6 {[%clk 0:03:00]} 8. Bg2 {[%clk 0:01:43.7]} 8...
Qc7 {[%clk 0:03:00.1]} 9. Bf4 {[%clk 0:01:44.8]} 9... g6 {[%clk 0:02:56.1]} 10.
h5 {[%clk 0:01:45.3]} 10... Bg7 {[%clk 0:02:56.4]} 11. hxg6 {[%clk 0:01:40.8]}
11... hxg6 {[%clk 0:02:56.8]} 12. Rxh8+ {[%clk 0:01:40.6]} 12... Bxh8 {[%clk
0:02:58.7]} 13. Nbd2 {[%clk 0:01:41.1]} 13... b6 {[%clk 0:02:54.9]} 14. O-O-O
{[%clk 0:01:40.1]} 14... Bb7 {[%clk 0:02:55.6]} 15. Rh1 {[%clk 0:01:40.9]} 15...
O-O-O {[%clk 0:02:56.3]} 16. Re1 {[%clk 0:01:41.4]} 16... Bg7 {[%clk 0:02:53.5]}
17. Kb1 {[%clk 0:01:42.2]} 17... Rh8 {[%clk 0:02:54.1]} 18. c3 {[%clk
0:01:40.5]} 18... Ba6 {[%clk 0:02:53.2]} 19. c4 {[%clk 0:01:40.6]} 19... dxc4
{[%clk 0:02:40.3]} 20. Nxc4 {[%clk 0:01:35.7]} 20... Bxc4 {[%clk 0:02:39.4]} 21.
dxc4 {[%clk 0:01:36.4]} 21... Rh5 {[%clk 0:02:34.5]} 22. g4 {[%clk 0:01:36.3]}
22... Rh8 {[%clk 0:02:33.9]} 23. Qe4 {[%clk 0:01:36.6]} 23... Ndb8 {[%clk
0:02:18.7]} 24. a3 {[%clk 0:01:34.1]} 24... Rd8 {[%clk 0:02:19.2]} 25. Ka2
{[%clk 0:01:34.2]} 25... Nd4 {[%clk 0:02:19.1]} 26. Ng5 {[%clk 0:01:31.8]} 26...
Rd7 {[%clk 0:02:12.6]} 27. Bc1 {[%clk 0:01:28.5]} 27... Nbc6 {[%clk 0:02:12.4]}
28. f4 {[%clk 0:01:29.4]} 28... Na5 {[%clk 0:02:01.5]} 29. Rh1 {[%clk
0:01:27.6]} 29... Nac6 {[%clk 0:01:27.1]} 30. Rh7 {[%clk 0:01:24.1]} 30... Bf8
{[%clk 0:01:24.6]} 31. Be3 {[%clk 0:01:17]} 31... Kb7 {[%clk 0:01:19.2]} 32.
Bxd4 {[%clk 0:01:14.1]} 32... cxd4 {[%clk 0:01:20.3]} 33. Nxe6 {[%clk
0:01:11.9]} 33... fxe6 {[%clk 0:01:18.6]} 34. Qxc6+ {[%clk 0:01:12.7]} 34...
Qxc6 {[%clk 0:01:18]} 35. Rxd7+ {[%clk 0:01:12.9]} 1-0

[Event "*** Titled Tuesday Blitz"]
[Site "Chess.com"]
[Date "2019.10.01"]
[Round "4"]
[White "I-Mesquita"]
[Black "chessS1r"]
[Result "1-0"]
[WhiteElo "2648"]
[BlackElo "2475"]
[TimeControl "180+2"]
[EndTime "13:53:49 PDT"]
[Termination "I-Mesquita won by checkmate"]

1. c4 {[%clk 0:03:01.5]} 1... e5 {[%clk 0:03:00.6]} 2. Nc3 {[%clk 0:03:02.5]}
2... Nf6 {[%clk 0:03:01.1]} 3. Nf3 {[%clk 0:03:03.4]} 3... Nc6 {[%clk
0:03:02.3]} 4. e3 {[%clk 0:03:04.1]} 4... Bb4 {[%clk 0:03:02.8]} 5. Qc2 {[%clk
0:03:04.9]} 5... Bxc3 {[%clk 0:03:03.1]} 6. bxc3 {[%clk 0:03:05.2]} 6... O-O
{[%clk 0:03:01.1]} 7. e4 {[%clk 0:03:05.7]} 7... d6 {[%clk 0:02:55.5]} 8. Be2
{[%clk 0:03:04.2]} 8... a6 {[%clk 0:02:51.7]} 9. O-O {[%clk 0:03:03.8]} 9... Nd7
{[%clk 0:02:52.7]} 10. d4 {[%clk 0:02:56.4]} 10... Nf6 {[%clk 0:02:48.2]} 11.
Bg5 {[%clk 0:02:39.6]} 11... h6 {[%clk 0:02:48.5]} 12. Bh4 {[%clk 0:02:38.7]}
12... g5 {[%clk 0:02:48.3]} 13. Bg3 {[%clk 0:02:39.4]} 13... Qe7 {[%clk
0:02:49.4]} 14. c5 {[%clk 0:02:34.5]} 14... exd4 {[%clk 0:02:36.1]} 15. cxd6
{[%clk 0:02:32.9]} 15... cxd6 {[%clk 0:02:38]} 16. Nxd4 {[%clk 0:02:29.6]} 16...
Nxd4 {[%clk 0:02:20.6]} 17. cxd4 {[%clk 0:02:29.8]} 17... Nxe4 {[%clk
0:02:21.6]} 18. Bc4 {[%clk 0:02:22.9]} 18... Nxg3 {[%clk 0:02:18.1]} 19. Qg6+
{[%clk 0:02:22.7]} 19... Kh8 {[%clk 0:02:17.7]} 20. Qxh6+ {[%clk 0:02:23.7]}
20... Kg8 {[%clk 0:02:19.1]} 21. fxg3 {[%clk 0:02:10.9]} 21... Qe3+ {[%clk
0:02:09.4]} 22. Kh1 {[%clk 0:02:10.2]} 22... Qxd4 {[%clk 0:02:10.6]} 23. Qxg5+
{[%clk 0:02:08.3]} 23... Qg7 {[%clk 0:02:11.4]} 24. Qe7 {[%clk 0:01:57.1]} 24...
Be6 {[%clk 0:01:58.7]} 25. Bxe6 {[%clk 0:01:51.7]} 25... fxe6 {[%clk 0:02:00.6]}
26. Qxe6+ {[%clk 0:01:48.8]} 26... Rf7 {[%clk 0:02:01]} 27. Rac1 {[%clk
0:01:32.3]} 27... Rf8 {[%clk 0:01:53.4]} 28. Rc7 {[%clk 0:01:20.3]} 28... Qe5
{[%clk 0:01:42.9]} 29. Qg6+ {[%clk 0:00:52]} 29... Qg7 {[%clk 0:01:41.1]} 30.
Qe6 {[%clk 0:00:46.6]} 30... Qe5 {[%clk 0:01:39.8]} 31. Rfxf7 {[%clk 0:00:33.8]}
31... Qxe6 {[%clk 0:01:29.1]} 32. Rg7+ {[%clk 0:00:34.4]} 32... Kh8 {[%clk
0:01:30.6]} 33. Rh7+ {[%clk 0:00:36.3]} 33... Kg8 {[%clk 0:01:32.5]} 34. Rcg7#
{[%clk 0:00:37.4]} 1-0

[Event "*** Titled Tuesday Blitz"]
[Site "Chess.com"]
[Date "2019.10.01"]
[Round "4"]
[White "Sashadav97"]
[Black "TrimitziosP7"]
[Result "0-1"]
[WhiteElo "2527"]
[BlackElo "2768"]
[TimeControl "180+2"]
[EndTime "13:53:52 PDT"]
[Termination "TrimitziosP7 won by resignation"]

1. d4 {[%clk 0:03:01.9]} 1... d5 {[%clk 0:03:00.2]} 2. c4 {[%clk 0:03:03]} 2...
c6 {[%clk 0:03:01.4]} 3. cxd5 {[%clk 0:03:04.3]} 3... cxd5 {[%clk 0:03:03.3]} 4.
Bf4 {[%clk 0:03:05.8]} 4... Nc6 {[%clk 0:03:03.7]} 5. e3 {[%clk 0:03:07.2]} 5...
Nf6 {[%clk 0:03:01.8]} 6. Nc3 {[%clk 0:03:08.4]} 6... a6 {[%clk 0:03:02.1]} 7.
Be2 {[%clk 0:03:08.9]} 7... e6 {[%clk 0:02:57.6]} 8. h3 {[%clk 0:03:06.4]} 8...
Bd7 {[%clk 0:02:57.4]} 9. Nf3 {[%clk 0:03:07.3]} 9... Be7 {[%clk 0:02:57.6]} 10.
O-O {[%clk 0:03:08.2]} 10... O-O {[%clk 0:02:58.7]} 11. Bd3 {[%clk 0:03:02.6]}
11... b5 {[%clk 0:02:59.4]} 12. Rc1 {[%clk 0:03:02.2]} 12... Na5 {[%clk
0:03:00]} 13. Ne5 {[%clk 0:03:00]} 13... Rc8 {[%clk 0:03:00.2]} 14. Qe2 {[%clk
0:02:45.9]} 14... Nc4 {[%clk 0:02:59.5]} 15. b3 {[%clk 0:02:44.8]} 15... Nd6
{[%clk 0:02:57.9]} 16. f3 {[%clk 0:02:41.7]} 16... Re8 {[%clk 0:02:51.6]} 17. g4
{[%clk 0:02:41.2]} 17... b4 {[%clk 0:02:47.7]} 18. Nxd7 {[%clk 0:02:35.7]} 18...
Nxd7 {[%clk 0:02:46.4]} 19. Bxd6 {[%clk 0:02:29.2]} 19... Bxd6 {[%clk
0:02:48.3]} 20. Na4 {[%clk 0:02:29.7]} 20... a5 {[%clk 0:02:47.5]} 21. Bb5
{[%clk 0:02:25.4]} 21... Rb8 {[%clk 0:02:45.1]} 22. f4 {[%clk 0:02:07.8]} 22...
Rf8 {[%clk 0:02:42]} 23. Bxd7 {[%clk 0:01:57.3]} 23... Qxd7 {[%clk 0:02:43.9]}
24. Qa6 {[%clk 0:01:58.8]} 24... h5 {[%clk 0:02:36.4]} 25. Rc6 {[%clk
0:01:49.8]} 25... Be7 {[%clk 0:02:33.9]} 26. Rfc1 {[%clk 0:01:46.2]} 26... hxg4
{[%clk 0:02:33.7]} 27. Rc7 {[%clk 0:01:39.4]} 27... Qd8 {[%clk 0:02:34.4]} 28.
hxg4 {[%clk 0:01:22.8]} 28... Ra8 {[%clk 0:02:24.4]} 29. Qb7 {[%clk 0:01:18.7]}
29... Bh4 {[%clk 0:02:23.9]} 30. Kg2 {[%clk 0:00:50.7]} 30... Qf6 {[%clk
0:02:21.9]} 31. Rh1 {[%clk 0:00:48.2]} 31... g5 {[%clk 0:02:20.3]} 32. Rxh4
{[%clk 0:00:19.2]} 32... gxh4 {[%clk 0:02:20.4]} 33. Nb6 {[%clk 0:00:21.1]}
33... Rab8 {[%clk 0:02:16.7]} 34. Nd7 {[%clk 0:00:22]} 34... Qg6 {[%clk
0:02:14.5]} 35. Nxb8 {[%clk 0:00:22.7]} 35... Qxg4+ {[%clk 0:02:14.7]} 36. Kf2
{[%clk 0:00:23.8]} 36... h3 {[%clk 0:02:14.3]} 37. Nd7 {[%clk 0:00:21.3]} 37...
Qg2+ {[%clk 0:02:15]} 38. Ke1 {[%clk 0:00:22.5]} 38... h2 {[%clk 0:02:14.9]} 39.
Nf6+ {[%clk 0:00:23.4]} 39... Kh8 {[%clk 0:02:14.4]} 0-1

[Event "*** Titled Tuesday Blitz"]
[Site "Chess.com"]
[Date "2019.10.01"]
[Round "4"]
[White "TheLancer"]
[Black "Dr-Bassem"]
[Result "0-1"]
[WhiteElo "2559"]
[BlackElo "2821"]
[TimeControl "180+2"]
[EndTime "13:53:58 PDT"]
[Termination "Dr-Bassem won by resignation"]

1. e4 {[%clk 0:03:01.9]} 1... e5 {[%clk 0:03:00.3]} 2. Nf3 {[%clk 0:02:57.1]}
2... Nc6 {[%clk 0:03:01.3]} 3. Bb5 {[%clk 0:02:58.5]} 3... a6 {[%clk 0:03:02.2]}
4. Ba4 {[%clk 0:02:59.6]} 4... Nf6 {[%clk 0:03:03.3]} 5. O-O {[%clk 0:03:01.2]}
5... Be7 {[%clk 0:03:04]} 6. Re1 {[%clk 0:03:02.4]} 6... b5 {[%clk 0:03:05]} 7.
Bb3 {[%clk 0:03:04]} 7... d6 {[%clk 0:03:06.6]} 8. c3 {[%clk 0:03:05.4]} 8...
O-O {[%clk 0:03:08]} 9. a4 {[%clk 0:03:07]} 9... b4 {[%clk 0:03:01]} 10. a5
{[%clk 0:03:08]} 10... Rb8 {[%clk 0:02:39.1]} 11. h3 {[%clk 0:03:05.6]} 11...
Be6 {[%clk 0:02:32]} 12. Bxe6 {[%clk 0:02:50]} 12... fxe6 {[%clk 0:02:33.9]} 13.
d4 {[%clk 0:02:51]} 13... bxc3 {[%clk 0:02:32.9]} 14. bxc3 {[%clk 0:02:44.2]}
14... exd4 {[%clk 0:02:33.4]} 15. cxd4 {[%clk 0:02:41.5]} 15... d5 {[%clk
0:02:25.7]} 16. exd5 {[%clk 0:02:24.2]} 16... exd5 {[%clk 0:02:22.3]} 17. Ne5
{[%clk 0:01:57.4]} 17... Nxe5 {[%clk 0:02:18.4]} 18. dxe5 {[%clk 0:01:59.3]}
18... Ne4 {[%clk 0:02:18.6]} 19. Be3 {[%clk 0:01:55.9]} 19... Bb4 {[%clk
0:02:05.9]} 20. Re2 {[%clk 0:01:27.3]} 20... Bc3 {[%clk 0:02:03.8]} 21. Nxc3
{[%clk 0:01:00.7]} 21... Nxc3 {[%clk 0:02:03.7]} 22. Qd3 {[%clk 0:01:02.6]}
22... Nxe2+ {[%clk 0:02:01.2]} 23. Qxe2 {[%clk 0:01:04.5]} 23... Rb5 {[%clk
0:01:52.3]} 24. f4 {[%clk 0:01:05.4]} 24... d4 {[%clk 0:01:48]} 25. Bd2 {[%clk
0:01:01.9]} 25... Qd5 {[%clk 0:01:44.4]} 26. Rc1 {[%clk 0:00:56.8]} 26... c5
{[%clk 0:01:44]} 27. Qd3 {[%clk 0:00:53.8]} 27... Rb2 {[%clk 0:01:39.2]} 28. Rc2
{[%clk 0:00:11.8]} 28... c4 {[%clk 0:01:31.9]} 0-1

[Event "*** Titled Tuesday Blitz"]
[Site "Chess.com"]
[Date "2019.10.01"]
[Round "4"]
[White "Olga_Girya"]
[Black "Andrii_Prydun"]
[Result "1-0"]
[WhiteElo "2477"]
[BlackElo "2254"]
[TimeControl "180+2"]
[EndTime "13:54:03 PDT"]
[Termination "Olga_Girya won by resignation"]

1. d4 {[%clk 0:03:00.9]} 1... Nf6 {[%clk 0:02:38.8]} 2. c4 {[%clk 0:03:01.5]}
2... c6 {[%clk 0:02:39.9]} 3. Nf3 {[%clk 0:03:01.6]} 3... d5 {[%clk 0:02:41.2]}
4. Qc2 {[%clk 0:03:01.8]} 4... e6 {[%clk 0:02:41.8]} 5. e3 {[%clk 0:03:00.3]}
5... Nbd7 {[%clk 0:02:43.2]} 6. Nbd2 {[%clk 0:03:01.8]} 6... Be7 {[%clk
0:02:44.5]} 7. Bd3 {[%clk 0:03:03.4]} 7... O-O {[%clk 0:02:45.9]} 8. O-O {[%clk
0:03:04.9]} 8... b6 {[%clk 0:02:46.9]} 9. e4 {[%clk 0:03:06]} 9... dxe4 {[%clk
0:02:47.6]} 10. Nxe4 {[%clk 0:03:07.5]} 10... Bb7 {[%clk 0:02:48.8]} 11. Be3
{[%clk 0:03:00.1]} 11... Nxe4 {[%clk 0:02:41.5]} 12. Bxe4 {[%clk 0:03:01]} 12...
Nf6 {[%clk 0:02:43.4]} 13. Rad1 {[%clk 0:02:52.6]} 13... Qc7 {[%clk 0:02:44.2]}
14. c5 {[%clk 0:02:50.8]} 14... Ba6 {[%clk 0:02:38.7]} 15. Rfe1 {[%clk
0:02:51.9]} 15... Nxe4 {[%clk 0:02:37.8]} 16. Qxe4 {[%clk 0:02:52.5]} 16... Bc4
{[%clk 0:02:38.9]} 17. Bf4 {[%clk 0:02:32.2]} 17... Qb7 {[%clk 0:02:39.4]} 18.
b3 {[%clk 0:02:29.8]} 18... Bd5 {[%clk 0:02:37.2]} 19. Qe3 {[%clk 0:02:31.1]}
19... bxc5 {[%clk 0:02:27]} 20. dxc5 {[%clk 0:02:29.4]} 20... Qb5 {[%clk
0:02:12]} 21. Rc1 {[%clk 0:02:11.1]} 21... Qa5 {[%clk 0:01:59.9]} 22. Re2 {[%clk
0:02:03]} 22... Bxf3 {[%clk 0:01:40.7]} 23. Qxf3 {[%clk 0:02:03.5]} 23... Bxc5
{[%clk 0:01:41.9]} 24. Rec2 {[%clk 0:02:00.3]} 24... Ba3 {[%clk 0:01:37.9]} 25.
Rf1 {[%clk 0:01:59.5]} 25... Qd5 {[%clk 0:01:25.9]} 26. Rxc6 {[%clk 0:01:56.9]}
26... Qxf3 {[%clk 0:01:26.3]} 27. gxf3 {[%clk 0:01:58]} 27... Rac8 {[%clk
0:01:26.6]} 28. Rxc8 {[%clk 0:01:53.4]} 28... Rxc8 {[%clk 0:01:28.5]} 29. Rd1
{[%clk 0:01:54.6]} 29... h6 {[%clk 0:01:25.4]} 30. Rd7 {[%clk 0:01:51.9]} 30...
a5 {[%clk 0:00:47.2]} 31. Bd2 {[%clk 0:01:52.9]} 31... Rc2 {[%clk 0:00:45.9]}
32. Bxa5 {[%clk 0:01:42.6]} 32... Rxa2 {[%clk 0:00:46.6]} 33. Bb6 {[%clk
0:01:41.9]} 33... Rb2 {[%clk 0:00:39]} 34. Rd3 {[%clk 0:01:42.2]} 34... Bb4
{[%clk 0:00:38.4]} 35. Kg2 {[%clk 0:01:39.5]} 35... f6 {[%clk 0:00:36.7]} 36. f4
{[%clk 0:01:38.2]} 36... Kf7 {[%clk 0:00:31]} 37. Bd4 {[%clk 0:01:37.8]} 37...
Kg6 {[%clk 0:00:31.3]} 38. Bxb2 {[%clk 0:01:38.3]} 1-0

[Event "*** Titled Tuesday Blitz"]
[Site "Chess.com"]
[Date "2019.10.01"]
[Round "4"]
[White "TrenerChos"]
[Black "Keaton87"]
[Result "1-0"]
[WhiteElo "2413"]
[BlackElo "2587"]
[TimeControl "180+2"]
[EndTime "13:54:07 PDT"]
[Termination "TrenerChos won by resignation"]

1. e4 {[%clk 0:03:01.9]} 1... c5 {[%clk 0:03:00.4]} 2. Nf3 {[%clk 0:03:02]} 2...
d6 {[%clk 0:03:01.6]} 3. d4 {[%clk 0:03:02.5]} 3... Nf6 {[%clk 0:03:03.1]} 4.
Nc3 {[%clk 0:03:00.5]} 4... cxd4 {[%clk 0:03:04.7]} 5. Nxd4 {[%clk 0:03:01.2]}
5... g6 {[%clk 0:03:06.3]} 6. Bb5+ {[%clk 0:03:01]} 6... Bd7 {[%clk 0:03:06.6]}
7. Bxd7+ {[%clk 0:03:01.3]} 7... Qxd7 {[%clk 0:03:08]} 8. Bg5 {[%clk 0:03:00.1]}
8... Bg7 {[%clk 0:03:09]} 9. Bxf6 {[%clk 0:03:00.5]} 9... Bxf6 {[%clk
0:03:09.7]} 10. Nd5 {[%clk 0:03:01.4]} 10... Bg7 {[%clk 0:03:08.8]} 11. c3
{[%clk 0:03:02]} 11... O-O {[%clk 0:03:09.5]} 12. O-O {[%clk 0:03:02]} 12... Nc6
{[%clk 0:03:08.2]} 13. Re1 {[%clk 0:03:00]} 13... Rac8 {[%clk 0:03:09.2]} 14. a4
{[%clk 0:02:59]} 14... Nxd4 {[%clk 0:03:05.1]} 15. cxd4 {[%clk 0:02:59.4]} 15...
e6 {[%clk 0:03:06.4]} 16. Ne3 {[%clk 0:02:56.7]} 16... d5 {[%clk 0:03:05.8]} 17.
exd5 {[%clk 0:02:56.7]} 17... exd5 {[%clk 0:03:05.6]} 18. Qd3 {[%clk 0:02:54.8]}
18... Rc6 {[%clk 0:02:59.5]} 19. Red1 {[%clk 0:02:55.2]} 19... Rfc8 {[%clk
0:02:59.2]} 20. a5 {[%clk 0:02:54.5]} 20... a6 {[%clk 0:02:49.8]} 21. Qb3 {[%clk
0:02:54.7]} 21... h5 {[%clk 0:02:23.4]} 22. g3 {[%clk 0:02:50.6]} 22... Rd8
{[%clk 0:02:21.4]} 23. Ra4 {[%clk 0:02:43.4]} 23... h4 {[%clk 0:02:20.2]} 24.
Rb4 {[%clk 0:02:42.6]} 24... Qh3 {[%clk 0:02:10.5]} 25. Rxb7 {[%clk 0:02:37.4]}
25... Rf6 {[%clk 0:02:09.9]} 26. Qc2 {[%clk 0:02:20.1]} 26... Rc8 {[%clk
0:02:04.9]} 27. Qe2 {[%clk 0:02:17.6]} 27... Re6 {[%clk 0:01:59.3]} 28. Qf3
{[%clk 0:02:13.5]} 28... Rf6 {[%clk 0:01:52.9]} 29. Qg2 {[%clk 0:02:11.9]} 29...
Qxg2+ {[%clk 0:01:25.9]} 30. Kxg2 {[%clk 0:02:12.4]} 30... hxg3 {[%clk
0:01:27.8]} 31. hxg3 {[%clk 0:02:12.4]} 31... Rd6 {[%clk 0:01:29.3]} 32. Rb6
{[%clk 0:02:12]} 32... Rcd8 {[%clk 0:01:07.5]} 33. Rd3 {[%clk 0:02:09.8]} 33...
Bh6 {[%clk 0:01:07.7]} 34. Kf3 {[%clk 0:02:06.6]} 34... Bf8 {[%clk 0:00:56.6]}
35. Rdb3 {[%clk 0:02:04]} 35... Kg7 {[%clk 0:00:55.4]} 36. Rxd6 {[%clk 0:02:04]}
36... Rxd6 {[%clk 0:00:55.9]} 37. Rb6 {[%clk 0:02:05]} 37... Rf6+ {[%clk
0:00:51.3]} 38. Ke2 {[%clk 0:02:05.2]} 38... Bd6 {[%clk 0:00:46.1]} 39. Nxd5
{[%clk 0:02:03.9]} 39... Re6+ {[%clk 0:00:47.4]} 40. Kd3 {[%clk 0:02:04.3]}
40... Kh6 {[%clk 0:00:43.7]} 41. b4 {[%clk 0:02:04.6]} 41... Kg5 {[%clk
0:00:44.3]} 42. Rxa6 {[%clk 0:02:05]} 42... Kg4 {[%clk 0:00:44.2]} 43. Rc6
{[%clk 0:02:05.1]} 43... Kf3 {[%clk 0:00:45.3]} 44. a6 {[%clk 0:02:05.7]} 44...
Bb8 {[%clk 0:00:42.6]} 45. Rxe6 {[%clk 0:02:05.3]} 45... fxe6 {[%clk 0:00:43.9]}
46. Ne7 {[%clk 0:02:02.7]} 46... g5 {[%clk 0:00:42.9]} 47. Nc6 {[%clk
0:02:03.1]} 1-0

[Event "*** Titled Tuesday Blitz"]
[Site "Chess.com"]
[Date "2019.10.01"]
[Round "4"]
[White "bascheyaro"]
[Black "albi1999"]
[Result "1-0"]
[WhiteElo "2757"]
[BlackElo "2524"]
[TimeControl "180+2"]
[EndTime "13:54:09 PDT"]
[Termination "bascheyaro won by resignation"]

1. d4 {[%clk 0:03:01.9]} 1... Nf6 {[%clk 0:02:49.9]} 2. Nf3 {[%clk 0:03:02.4]}
2... d5 {[%clk 0:02:49.5]} 3. c4 {[%clk 0:03:03.3]} 3... e6 {[%clk 0:02:50.8]}
4. Nc3 {[%clk 0:03:03.5]} 4... Bb4 {[%clk 0:02:51.7]} 5. Bg5 {[%clk 0:03:04.3]}
5... h6 {[%clk 0:02:52.4]} 6. Bxf6 {[%clk 0:03:05.5]} 6... Qxf6 {[%clk
0:02:54.3]} 7. e3 {[%clk 0:03:06.3]} 7... O-O {[%clk 0:02:53.5]} 8. Qb3 {[%clk
0:03:06.8]} 8... c5 {[%clk 0:02:50]} 9. a3 {[%clk 0:03:05]} 9... Bxc3+ {[%clk
0:02:27.3]} 10. bxc3 {[%clk 0:03:06.9]} 10... dxc4 {[%clk 0:02:02.7]} 11. Bxc4
{[%clk 0:03:07.3]} 11... Nc6 {[%clk 0:02:00.6]} 12. Be2 {[%clk 0:03:08.3]} 12...
e5 {[%clk 0:01:57.6]} 13. dxc5 {[%clk 0:03:05.3]} 13... Bg4 {[%clk 0:01:54.4]}
14. h3 {[%clk 0:03:02.6]} 14... Bh5 {[%clk 0:01:53.5]} 15. Qc4 {[%clk
0:02:33.6]} 15... Rfe8 {[%clk 0:01:46.4]} 16. O-O {[%clk 0:02:33.8]} 16... e4
{[%clk 0:01:45.4]} 17. Nd4 {[%clk 0:02:34.9]} 17... Bxe2 {[%clk 0:01:20.5]} 18.
Nxe2 {[%clk 0:02:35.5]} 18... Qe6 {[%clk 0:01:06.9]} 19. Qxe6 {[%clk 0:02:30.9]}
19... Rxe6 {[%clk 0:01:08.8]} 20. Rab1 {[%clk 0:02:30.6]} 20... Nd8 {[%clk
0:00:56.9]} 21. Rfd1 {[%clk 0:02:24.8]} 21... Re7 {[%clk 0:00:56.8]} 22. Rd5
{[%clk 0:02:17]} 22... Kf8 {[%clk 0:00:56.5]} 23. Nd4 {[%clk 0:02:16.5]} 23...
Ke8 {[%clk 0:00:56]} 24. Nb5 {[%clk 0:02:15.5]} 24... Rd7 {[%clk 0:00:41.3]} 25.
Re5+ {[%clk 0:02:12.9]} 25... Kf8 {[%clk 0:00:41.9]} 26. Nd6 {[%clk 0:01:56.1]}
26... Ne6 {[%clk 0:00:32.9]} 27. Rxb7 {[%clk 0:01:42.4]} 27... Rad8 {[%clk
0:00:29.6]} 28. Rxd7 {[%clk 0:01:31.3]} 28... Rxd7 {[%clk 0:00:31.5]} 29. Rxe4
{[%clk 0:01:31.8]} 29... Rc7 {[%clk 0:00:32.3]} 30. Rc4 {[%clk 0:01:24.5]} 30...
Ke7 {[%clk 0:00:32.5]} 31. Nb5 {[%clk 0:01:25]} 1-0

[Event "*** Titled Tuesday Blitz"]
[Site "Chess.com"]
[Date "2019.10.01"]
[Round "4"]
[White "SloLev"]
[Black "CastleOasisChess"]
[Result "1-0"]
[WhiteElo "2473"]
[BlackElo "2007"]
[TimeControl "180+2"]
[EndTime "13:54:12 PDT"]
[Termination "SloLev won by checkmate"]

1. e4 {[%clk 0:03:01.9]} 1... e6 {[%clk 0:03:00.9]} 2. d4 {[%clk 0:03:01.6]}
2... d5 {[%clk 0:03:02.2]} 3. exd5 {[%clk 0:03:03.5]} 3... exd5 {[%clk
0:03:03.5]} 4. c4 {[%clk 0:03:05.4]} 4... c6 {[%clk 0:03:03.8]} 5. Nc3 {[%clk
0:03:06.8]} 5... Bd6 {[%clk 0:03:04]} 6. cxd5 {[%clk 0:03:03.3]} 6... Nf6 {[%clk
0:02:59.1]} 7. dxc6 {[%clk 0:03:00.1]} 7... Nxc6 {[%clk 0:02:59.9]} 8. Bc4
{[%clk 0:02:58.5]} 8... O-O {[%clk 0:03:00.3]} 9. Nge2 {[%clk 0:03:00.1]} 9...
Na5 {[%clk 0:02:54.7]} 10. Bd3 {[%clk 0:02:58.9]} 10... Bg4 {[%clk 0:02:51.2]}
11. Bg5 {[%clk 0:02:51.7]} 11... Re8 {[%clk 0:02:45.9]} 12. O-O {[%clk
0:02:45.1]} 12... h6 {[%clk 0:02:45.3]} 13. Bh4 {[%clk 0:02:44.7]} 13... Rc8
{[%clk 0:02:23]} 14. f3 {[%clk 0:02:25.4]} 14... Bh5 {[%clk 0:02:09.3]} 15. Ne4
{[%clk 0:02:25.5]} 15... Be7 {[%clk 0:02:02.2]} 16. Bf2 {[%clk 0:01:50.7]} 16...
Nc6 {[%clk 0:01:53.5]} 17. Nf4 {[%clk 0:01:48.4]} 17... Nxe4 {[%clk 0:01:34.2]}
18. Bxe4 {[%clk 0:01:44.4]} 18... Bg6 {[%clk 0:01:12]} 19. Nxg6 {[%clk
0:01:36.1]} 19... fxg6 {[%clk 0:01:13.9]} 20. Bxg6 {[%clk 0:01:31.3]} 20... Rf8
{[%clk 0:01:15.4]} 21. Rc1 {[%clk 0:01:24.8]} 21... Rf6 {[%clk 0:01:11.5]} 22.
Bb1 {[%clk 0:01:24.3]} 22... Rd6 {[%clk 0:01:10.5]} 23. Qd3 {[%clk 0:01:24.3]}
23... g6 {[%clk 0:01:08.3]} 24. Bg3 {[%clk 0:01:21.9]} 24... Nb4 {[%clk
0:00:23.9]} 25. Qb3+ {[%clk 0:01:07.3]} 25... Nd5 {[%clk 0:00:19.8]} 26. Bxd6
{[%clk 0:01:06]} 26... Rxc1 {[%clk 0:00:19.5]} 27. Qxd5+ {[%clk 0:01:05.8]}
27... Kg7 {[%clk 0:00:19.8]} 28. Be5+ {[%clk 0:01:05.5]} 28... Kh7 {[%clk
0:00:13.7]} 29. Qf7# {[%clk 0:01:05.8]} 1-0